bitfinex/quotes_SOLUSD_20250604
["timestamp","ask_amount","ask_price","bid_price","bid_amount"]
[1749042935979,47.3792697,155.46,155.41,19.8083697]
[1749042936185,0.8019413,155.45,155.41,19.8083697]
[1749042938282,0.8019413,155.45,155.42,19.8083697]
[1749042938979,6.5802,155.49,155.44,19.8083697]
[1749042939213,0.8019413,155.48,155.45,19.8083697]
[1749042939486,20.610311,155.48,155.44,19.8083697]
[1749042940002,20.610311,155.48,155.43,19.8083697]
[1749042940314,20.610311,155.48,155.44,19.8083697]
[1749042940515,0.8019413,155.48,155.44,19.8083697]
[1749042941182,20.610311,155.48,155.43,19.8083697]
[1749042941383,19.8083697,155.46,155.42,19.8083697]
[1749042941818,19.8083697,155.47,155.42,19.8083697]
[1749042942111,0.8019413,155.46,155.42,19.8083697]
[1749042942313,46.610311,155.46,155.4,0.42648471]
[1749042942515,19.8083697,155.43,155.39,19.8083697]
[1749042942697,0.8019413,155.42,155.32,7.7356]
[1749042942883,19.8083697,155.41,155.37,19.8083697]
[1749042943217,1.5453,155.44,155.35,0.42648471]
[1749042943218,20.610311,155.4,155.35,0.42648471]
[1749042943381,20.610311,155.4,155.36,0.42648471]
[1749042943585,20.610311,155.4,155.36,20.23485441]
[1749042943992,20.610311,155.4,155.36,19.8083697]
[1749042945247,45.8083697,155.41,155.37,19.8083697]
[1749042945648,45.8083697,155.41,155.36,19.8083697]
[1749042946742,20.610311,155.4,155.36,19.8083697]
[1749042947039,20.610311,155.4,155.33,18.79181043]
[1749042947040,45.8083697,155.38,155.33,18.64964886]
[1749042947246,45.8083697,155.38,155.33,19.8083697]
[1749042947627,26.0,155.41,155.34,19.8083697]
[1749042947829,19.8083697,155.39,155.34,19.8083697]
[1749042948134,0.8019413,155.38,155.34,19.8083697]
[1749042948718,20.610311,155.38,155.34,19.8083697]
[1749042950042,19.8083697,155.39,155.34,19.8083697]
[1749042950345,19.8083697,155.39,155.35,19.8083697]
[1749042950719,19.8083697,155.39,155.33,0.42648471]
[1749042950720,46.610311,155.41,155.37,19.8083697]
[1749042950942,26.0,155.39,155.37,19.8083697]
[1749042951146,0.8019413,155.41,155.38,19.8083697]
[1749042951447,0.8019413,155.42,155.38,19.8083697]
[1749042951924,20.610311,155.42,155.38,19.8083697]
[1749042952543,19.8083697,155.41,155.37,19.8083697]
[1749042953136,20.610311,155.42,155.38,19.8083697]
[1749042953826,26.0,155.43,155.39,19.8083697]
[1749042954143,26.8019413,155.43,155.39,19.8083697]
[1749042954540,26.0,155.43,155.4,19.8083697]
[1749042954847,21.3536697,155.44,155.4,19.8083697]
[1749042955046,1.5453,155.44,155.41,19.8083697]
[1749042956419,1.5453,155.44,155.4,19.8083697]
[1749042956420,22.155611,155.44,155.4,19.8083697]
[1749042957462,21.3536697,155.44,155.4,19.8083697]
[1749042958349,0.8019413,155.43,155.39,0.42648471]
[1749042958550,0.8019413,155.43,155.4,19.8083697]
[1749042958852,0.8019413,155.43,155.39,20.23485441]
[1749042959166,21.3536697,155.44,155.4,19.8083697]
[1749042959368,1.5453,155.44,155.4,19.8083697]
[1749042959669,21.3536697,155.44,155.39,20.23485441]
[1749042960330,21.3536697,155.44,155.4,19.8083697]
[1749042961259,20.610311,155.46,155.41,19.8083697]
[1749042961455,20.610311,155.46,155.42,19.8083697]
[1749042961761,0.8019413,155.46,155.42,19.8083697]
[1749042961934,20.610311,155.46,155.42,19.8083697]
[1749042962957,19.8083697,155.45,155.41,19.8083697]
[1749042964729,20.610311,155.46,155.41,19.8083697]
[1749042964936,20.610311,155.46,155.42,19.8083697]
[1749042965176,1.5937,155.48,155.44,19.8083697]
[1749042965335,0.8019413,155.5,155.46,19.8083697]
[1749042965531,0.8019413,155.5,155.47,19.8083697]
[1749042965843,20.610311,155.5,155.46,19.8083697]
[1749042967851,0.8019413,155.5,155.47,19.8083697]
[1749042968058,7.2571413,155.51,155.47,19.8083697]
[1749042968247,27.065511,155.51,155.47,19.8083697]
[1749042968453,0.8019413,155.51,155.48,19.8083697]
[1749042968980,20.610311,155.51,155.47,19.8083697]
[1749042969567,20.610311,155.51,155.46,19.8083697]
[1749042970867,20.610311,155.51,155.44,0.42648471]
[1749042970868,0.8019413,155.51,155.47,19.8083697]
[1749042971186,20.610311,155.51,155.47,19.8083697]
[1749042971671,19.8083697,155.5,155.46,19.8083697]
[1749042972240,0.8019413,155.49,155.46,19.8083697]
[1749042972772,20.610311,155.49,155.45,19.8083697]
[1749042973469,1.6421,155.52,155.46,19.8083697]
[1749042973470,19.8083697,155.5,155.46,19.8083697]
[1749042973662,20.610311,155.5,155.46,19.8083697]
[1749042974547,19.8083697,155.5,155.46,19.8083697]
[1749042977264,20.610311,155.51,155.47,19.8083697]
[1749042978867,0.8019413,155.51,155.47,19.8083697]
[1749042979067,1.6421,155.52,155.47,19.8083697]
[1749042979265,20.610311,155.51,155.47,19.8083697]
[1749042979661,0.8019413,155.51,155.48,19.8083697]
[1749042980154,20.610311,155.51,155.47,19.8083697]
[1749042980474,0.8019413,155.51,155.47,19.8083697]
[1749042980675,21.4504697,155.52,155.48,19.8083697]
[1749042980867,0.8019413,155.51,155.48,19.8083697]
[1749042981256,0.8019413,155.51,155.46,0.14216157]
[1749042981462,0.8019413,155.51,155.48,19.8083697]
[1749042981663,21.4504697,155.52,155.48,19.8083697]
[1749042982182,20.610311,155.54,155.5,19.8083697]
[1749042982676,0.8019413,155.54,155.5,19.8083697]
[1749042983080,0.8019413,155.55,155.52,19.8083697]
[1749042983490,2.4096413,155.56,155.52,19.8083697]
[1749042983683,0.8019413,155.56,155.53,19.8083697]
[1749042983866,0.8019413,155.58,155.55,19.8083697]
[1749042984068,19.8083697,155.59,155.55,19.8083697]
[1749042984383,0.8019413,155.58,155.54,19.8083697]
[1749042984572,20.610311,155.58,155.53,19.8083697]
[1749042984960,20.610311,155.58,155.54,19.8083697]
[1749042985160,0.8019413,155.58,155.54,19.8083697]
[1749042985361,1.5322,155.6,155.52,0.14216157]
[1749042985560,19.8083697,155.56,155.52,19.95053127]
[1749042986279,19.8083697,155.56,155.52,0.14216157]
[1749042986527,19.8083697,155.56,155.52,19.95053127]
[1749042987365,19.8083697,155.55,155.5,38.45801856]
[1749042987562,19.8083697,155.53,155.49,45.8083697]
[1749042987762,19.8083697,155.53,155.49,26.0]
[1749042988668,19.8083697,155.53,155.49,45.8083697]
[1749042988979,19.8083697,155.54,155.49,45.8083697]
[1749042989373,19.8083697,155.55,155.5,19.95053127]
[1749042989762,19.8083697,155.55,155.51,19.8083697]
[1749042990582,19.8083697,155.56,155.52,19.8083697]
[1749042991006,19.8083697,155.56,155.51,19.8083697]
[1749042992784,26.0,155.59,155.5,38.88450327]
[1749042992785,19.8083697,155.54,155.5,38.88450327]
[1749042993182,19.8083697,155.53,155.5,0.14216157]
[1749042994699,26.8019413,155.58,155.5,0.14216157]
[1749042994894,19.8083697,155.53,155.5,0.14216157]
[1749042995784,19.8083697,155.52,155.5,0.14216157]
[1749042995983,19.8083697,155.52,155.48,20.09269284]
[1749042996182,19.8083697,155.52,155.49,0.14216157]
[1749042996391,1.5292,155.54,155.49,0.14216157]
[1749042996392,19.8083697,155.51,155.49,0.14216157]
[1749042997302,19.8083697,155.5,155.46,45.8083697]
[1749042997500,19.8083697,155.5,155.47,0.14216157]
[1749042998215,19.8083697,155.48,155.43,38.60018013]
[1749042998391,19.8083697,155.48,155.44,0.42648471]
[1749042998909,0.8019413,155.51,155.44,20.23485441]
[1749042999114,19.8083697,155.49,155.44,20.23485441]
[1749042999793,19.8083697,155.49,155.44,20.09269284]
[1749043000223,0.8019413,155.53,155.47,0.14216157]
[1749043000516,19.8083697,155.49,155.47,0.14216157]
[1749043000825,19.8083697,155.48,155.44,19.07613357]
[1749043001007,19.8083697,155.48,155.43,7.88479267]
[1749043001008,19.8083697,155.45,155.43,7.88479267]
[1749043001322,1.5789,155.48,155.43,7.88479267]
[1749043001323,19.8083697,155.44,155.43,7.88479267]
[1749043002322,19.8083697,155.45,155.43,7.88479267]
[1749043003308,19.8083697,155.46,155.43,7.88479267]
[1749043004409,0.8019413,155.51,155.44,19.95053127]
[1749043004595,19.8083697,155.49,155.44,19.95053127]
[1749043004794,19.8083697,155.47,155.44,0.14216157]
[1749043005099,19.8083697,155.48,155.44,0.14216157]
[1749043005498,19.8083697,155.48,155.44,19.95053127]
[1749043005885,19.8083697,155.49,155.44,19.95053127]
[1749043006498,19.8083697,155.49,155.45,19.8083697]
[1749043006799,19.8083697,155.49,155.44,38.88450327]
[1749043008112,19.8083697,155.48,155.44,38.88450327]
[1749043008299,19.8083697,155.48,155.44,19.95053127]
[1749043009507,19.8083697,155.47,155.44,0.14216157]
[1749043010810,19.8083697,155.47,155.43,27.69316237]
[1749043011129,19.8083697,155.47,155.43,7.88479267]
[1749043011333,19.8083697,155.47,155.43,27.69316237]
[1749043011509,19.8083697,155.48,155.44,19.8083697]
[1749043011699,19.8083697,155.5,155.45,19.95053127]
[1749043011903,19.8083697,155.5,155.46,19.8083697]
[1749043012737,19.8083697,155.5,155.45,19.95053127]
[1749043014119,19.8083697,155.51,155.47,19.8083697]
[1749043014327,22.147711,155.52,155.47,19.8083697]
[1749043014704,22.147711,155.52,155.48,19.8083697]
[1749043014906,20.610311,155.55,155.51,19.8083697]
[1749043015131,19.8083697,155.55,155.51,19.8083697]
[1749043017541,20.610311,155.56,155.52,19.8083697]
[1749043017744,28.405611,155.57,155.52,19.8083697]
[1749043018110,19.8083697,155.55,155.51,19.8083697]
[1749043018305,8.5972413,155.57,155.49,0.42648471]
[1749043018306,19.8083697,155.54,155.5,19.8083697]
[1749043018748,19.8083697,155.55,155.51,19.8083697]
[1749043019250,20.610311,155.54,155.49,19.95053127]
[1749043019939,19.8083697,155.53,155.47,18.64964886]
[1749043020132,19.8083697,155.51,155.48,0.14216157]
[1749043020319,19.8083697,155.51,155.47,38.45801856]
[1749043020520,19.8083697,155.51,155.48,0.14216157]
[1749043020727,19.8083697,155.5,155.46,19.8083697]
[1749043020929,19.8083697,155.51,155.47,19.8083697]
[1749043021240,19.8083697,155.53,155.49,19.8083697]
[1749043022134,19.8083697,155.53,155.48,19.8083697]
[1749043022622,19.8083697,155.52,155.48,19.8083697]
[1749043022820,19.8083697,155.52,155.46,0.28432314]
[1749043022821,19.8083697,155.51,155.46,0.14216157]
[1749043023020,19.8083697,155.5,155.47,0.14216157]
[1749043023724,19.8083697,155.5,155.45,19.95053127]
[1749043023933,19.8083697,155.49,155.46,0.14216157]
[1749043024123,19.8083697,155.49,155.44,64.60018013]
[1749043024540,19.8083697,155.49,155.45,0.14216157]
[1749043025426,19.8083697,155.5,155.46,19.8083697]
[1749043026815,19.8083697,155.5,155.45,19.95053127]
[1749043027917,1.6409,155.51,155.45,19.95053127]
[1749043028143,19.8083697,155.5,155.46,19.8083697]
[1749043028446,19.8083697,155.5,155.45,19.95053127]
[1749043030327,20.610311,155.53,155.49,19.8083697]
[1749043030642,2.3058413,155.55,155.5,19.8083697]
[1749043030827,22.114211,155.55,155.51,19.8083697]
[1749043031430,19.8083697,155.54,155.5,19.8083697]
[1749043032139,19.8083697,155.54,155.5,0.14216157]
[1749043032642,22.114211,155.55,155.5,19.95053127]
[1749043032844,1.5039,155.55,155.51,19.8083697]
[1749043033148,20.610311,155.57,155.53,19.8083697]
[1749043033525,0.8019413,155.57,155.53,19.8083697]
[1749043033930,20.610311,155.58,155.53,19.8083697]
[1749043034848,19.8083697,155.57,155.53,19.8083697]
[1749043038437,19.8083697,155.56,155.52,0.14216157]
[1749043038757,19.8083697,155.55,155.52,0.14216157]
[1749043041339,19.8083697,155.56,155.52,0.14216157]
[1749043042955,19.8083697,155.56,155.52,19.8083697]
[1749043043254,19.8083697,155.57,155.52,19.8083697]
[1749043043459,19.8083697,155.57,155.53,19.8083697]
[1749043043625,2.4235413,155.59,155.55,19.8083697]
[1749043043626,1.6216,155.59,155.55,19.8083697]
[1749043044063,19.8083697,155.6,155.56,19.8083697]
[1749043046747,19.8083697,155.6,155.56,0.14216157]
[1749043046940,19.8083697,155.59,155.56,0.14216157]
[1749043050341,19.8083697,155.6,155.56,0.14216157]
[1749043052862,19.8083697,155.6,155.56,19.95053127]
[1749043053171,19.8083697,155.61,155.56,19.95053127]
[1749043053465,19.8083697,155.61,155.57,19.8083697]
[1749043054562,19.8083697,155.62,155.58,19.8083697]
[1749043055365,22.183411,155.63,155.58,19.8083697]
[1749043055558,2.3750413,155.63,155.58,19.8083697]
[1749043055874,19.8083697,155.62,155.58,19.8083697]
[1749043056071,19.8083697,155.62,155.58,0.14216157]
[1749043056277,19.8083697,155.6,155.55,18.79181043]
[1749043056564,19.8083697,155.6,155.56,0.14216157]
[1749043056756,19.8083697,155.6,155.56,19.95053127]
[1749043061269,19.8083697,155.61,155.57,19.8083697]
[1749043062880,19.8083697,155.6,155.56,0.14216157]
[1749043064110,19.8083697,155.6,155.56,19.95053127]
[1749043064305,19.8083697,155.61,155.56,19.95053127]
[1749043064578,19.8083697,155.61,155.57,19.8083697]
[1749043064966,1.5731,155.63,155.58,19.8083697]
[1749043065262,6.0012,155.65,155.6,19.8083697]
[1749043065263,20.610311,155.65,155.6,19.8083697]
[1749043065469,19.8083697,155.65,155.6,19.8083697]
[1749043066195,19.8083697,155.65,155.57,0.14216157]
[1749043066196,2.4001413,155.67,155.61,19.8083697]
[1749043066395,19.8083697,155.65,155.61,19.8083697]
[1749043066573,19.8083697,155.65,155.6,19.8083697]
[1749043066987,19.8083697,155.64,155.6,19.8083697]
[1749043067183,19.8083697,155.62,155.58,19.8083697]
[1749043067390,19.8083697,155.6,155.57,26.0]
[1749043067568,19.8083697,155.6,155.56,19.95053127]
[1749043068765,19.8083697,155.59,155.56,0.14216157]
[1749043069007,19.8083697,155.58,155.53,19.8083697]
[1749043069690,19.8083697,155.58,155.54,0.14216157]
[1749043070193,19.8083697,155.58,155.54,19.8083697]
[1749043070485,19.8083697,155.58,155.53,19.8083697]
[1749043070695,19.8083697,155.58,155.54,0.14216157]
[1749043071068,19.8083697,155.58,155.54,19.95053127]
[1749043072412,19.8083697,155.58,155.55,19.8083697]
[1749043073490,19.8083697,155.59,155.55,19.8083697]
[1749043074110,47.4362697,155.61,155.56,19.95053127]
[1749043074590,47.4362697,155.61,155.56,0.14216157]
[1749043074591,27.6279,155.61,155.56,0.14216157]
[1749043074796,1.6279,155.61,155.57,19.8083697]
[1749043076575,21.4362697,155.61,155.57,19.8083697]
[1749043078282,20.610311,155.6,155.52,0.14216157]
[1749043078588,19.8083697,155.59,155.55,19.8083697]
[1749043080200,19.8083697,155.6,155.55,19.8083697]
[1749043080983,19.8083697,155.6,155.56,19.8083697]
[1749043081180,22.238211,155.61,155.57,19.8083697]
[1749043081379,19.8083697,155.6,155.53,0.14216157]
[1749043081599,0.8019413,155.59,155.55,19.8083697]
[1749043081787,20.610311,155.6,155.53,0.14216157]
[1749043081987,19.8083697,155.59,155.53,0.14216157]
[1749043082311,19.8083697,155.59,155.55,19.8083697]
[1749043083019,19.8083697,155.6,155.55,19.8083697]
[1749043083181,2.4298413,155.61,155.56,19.8083697]
[1749043083380,26.8019413,155.63,155.58,19.8083697]
[1749043083602,19.8083697,155.63,155.58,19.8083697]
[1749043083784,26.8019413,155.64,155.57,19.95053127]
[1749043083785,20.610311,155.62,155.57,19.95053127]
[1749043085000,19.8083697,155.61,155.57,19.95053127]
[1749043085181,19.8083697,155.61,155.56,19.8083697]
[1749043086091,19.8083697,155.6,155.56,19.8083697]
[1749043086297,19.8083697,155.61,155.56,19.8083697]
[1749043086481,19.8083697,155.61,155.57,19.8083697]
[1749043087382,0.8019413,155.63,155.57,19.8083697]
[1749043087383,19.8083697,155.62,155.57,19.8083697]
[1749043087581,19.8083697,155.61,155.57,19.8083697]
[1749043087782,19.8083697,155.61,155.57,0.14216157]
[1749043089520,0.8019413,155.63,155.57,0.14216157]
[1749043089681,19.8083697,155.61,155.57,19.95053127]
[1749043090512,19.8083697,155.6,155.57,0.14216157]
[1749043091112,20.610311,155.59,155.48,11.86086613]
[1749043091290,19.8083697,155.58,155.54,19.8083697]
[1749043092494,6.1877,155.61,155.54,19.8083697]
[1749043092808,19.8083697,155.58,155.54,19.8083697]
[1749043095443,19.8083697,155.58,155.48,11.86086613]
[1749043095444,19.8083697,155.55,155.49,18.64964886]
[1749043095630,19.8083697,155.53,155.5,0.14216157]
[1749043096240,19.8083697,155.53,155.48,19.8083697]
[1749043096410,19.8083697,155.51,155.44,6.2462]
[1749043096614,19.8083697,155.5,155.45,18.79181043]
[1749043096845,19.8083697,155.5,155.45,38.45801856]
[1749043097147,19.8083697,155.5,155.46,0.14216157]
[1749043098054,0.8019413,155.51,155.45,38.45801856]
[1749043098249,20.610311,155.51,155.46,19.8083697]
[1749043098548,19.8083697,155.51,155.47,19.95053127]
[1749043099023,19.8083697,155.51,155.47,0.14216157]
[1749043099555,19.8083697,155.5,155.47,0.14216157]
[1749043100546,19.8083697,155.51,155.47,0.14216157]
[1749043100717,19.8083697,155.51,155.47,19.95053127]
[1749043101421,19.8083697,155.52,155.48,19.8083697]
[1749043102243,1.5854,155.53,155.49,0.14216157]
[1749043102418,21.3937697,155.53,155.49,19.8083697]
[1749043102619,21.3937697,155.53,155.48,19.95053127]
[1749043102824,21.3937697,155.53,155.48,38.7423417]
[1749043104353,45.8083697,155.54,155.5,0.14216157]
[1749043105022,19.8083697,155.54,155.5,19.95053127]
[1749043106446,26.8019413,155.56,155.5,19.95053127]
[1749043106666,19.8083697,155.55,155.51,19.8083697]
[1749043107254,19.8083697,155.54,155.51,0.14216157]
[1749043107435,1.5141,155.57,155.53,0.14216157]
[1749043107640,1.5141,155.57,155.55,19.8083697]
[1749043107834,1.5141,155.57,155.53,0.14216157]
[1749043108149,1.5141,155.57,155.54,19.8083697]
[1749043108629,1.5141,155.57,155.53,19.95053127]
[1749043109154,1.5141,155.57,155.54,19.8083697]
[1749043109446,26.0,155.6,155.55,19.8083697]
[1749043109447,45.8083697,155.6,155.55,19.8083697]
[1749043109649,45.8083697,155.6,155.56,19.8083697]
[1749043109957,19.8083697,155.6,155.56,19.8083697]
[1749043110174,21.4324697,155.61,155.57,19.8083697]
[1749043111165,0.8019413,155.6,155.57,19.8083697]
[1749043111475,0.8019413,155.6,155.56,19.8083697]
[1749043111658,46.610311,155.6,155.56,19.8083697]
[1749043111969,22.234411,155.61,155.57,19.8083697]
[1749043112330,1.6241,155.61,155.58,19.8083697]
[1749043112759,2.4260413,155.61,155.57,19.8083697]
[1749043112954,1.6241,155.61,155.57,19.8083697]
[1749043113555,1.6241,155.61,155.58,19.8083697]
[1749043113930,0.8019413,155.63,155.59,19.8083697]
[1749043114130,21.4704697,155.65,155.61,19.8083697]
[1749043114561,1.6621,155.65,155.61,19.8083697]
[1749043115430,1.6621,155.65,155.62,19.8083697]
[1749043115828,20.610311,155.67,155.63,19.8083697]
[1749043116448,20.610311,155.67,155.62,19.8083697]
[1749043117158,19.8083697,155.66,155.61,20.09269284]
[1749043117359,0.8019413,155.67,155.42,1.5441]
[1749043117360,0.14216157,155.58,155.42,1.5441]
[1749043117536,19.8083697,155.49,155.42,1.5441]
[1749043117730,26.0,155.54,155.45,19.8083697]
[1749043117731,19.8083697,155.5,155.45,19.8083697]
[1749043118042,11.63391856,155.52,155.42,1.5441]
[1749043118043,20.610311,155.49,155.44,19.8083697]
[1749043118763,19.8083697,155.48,155.44,19.8083697]
[1749043119143,19.8083697,155.49,155.44,19.8083697]
[1749043119549,19.8083697,155.49,155.45,19.8083697]
[1749043119749,19.8083697,155.5,155.45,19.8083697]
[1749043120058,0.8019413,155.49,155.45,19.8083697]
[1749043120959,0.8019413,155.49,155.46,19.8083697]
[1749043121264,19.8083697,155.51,155.47,19.8083697]
[1749043121463,0.8019413,155.52,155.48,19.8083697]
[1749043122343,19.8083697,155.53,155.49,19.8083697]
[1749043122557,20.610311,155.53,155.49,19.8083697]
[1749043123267,0.8019413,155.53,155.49,19.8083697]
[1749043124159,20.610311,155.53,155.48,19.8083697]
[1749043124866,20.610311,155.53,155.49,19.8083697]
[1749043125064,20.610311,155.53,155.46,0.42648471]
[1749043125065,19.8083697,155.51,155.48,0.14216157]
[1749043126036,19.8083697,155.52,155.48,0.14216157]
[1749043129661,0.8019413,155.54,155.46,0.14216157]
[1749043129872,19.8083697,155.49,155.46,0.14216157]
[1749043130575,1.6382,155.51,155.38,1.5414]
[1749043130776,0.8019413,155.5,155.4,18.79181043]
[1749043130977,19.8083697,155.46,155.42,0.14216157]
[1749043131138,19.8083697,155.49,155.45,0.14216157]
[1749043131344,19.8083697,155.49,155.45,19.95053127]
[1749043132374,19.8083697,155.48,155.45,18.79181043]
[1749043133450,19.8083697,155.49,155.45,18.79181043]
[1749043134251,19.8083697,155.49,155.45,19.95053127]
[1749043134454,19.8083697,155.5,155.47,0.14216157]
[1749043136365,19.8083697,155.51,155.47,19.95053127]
[1749043137780,20.610311,155.51,155.47,19.95053127]
[1749043138162,19.8083697,155.51,155.47,19.95053127]
[1749043138866,28.3832413,155.55,155.47,19.95053127]
[1749043138867,19.8083697,155.53,155.48,19.8083697]
[1749043139062,19.8083697,155.52,155.48,19.8083697]
[1749043140275,6.2075,155.56,155.51,19.8083697]
[1749043140276,19.8083697,155.56,155.51,19.8083697]
[1749043140463,19.8083697,155.56,155.52,0.14216157]
[1749043140872,19.8083697,155.56,155.52,19.95053127]
[1749043142980,2.4215413,155.59,155.49,19.07613357]
[1749043142981,19.8083697,155.53,155.49,19.07613357]
[1749043143183,19.8083697,155.53,155.49,38.88450327]
[1749043145186,19.8083697,155.53,155.49,0.28432314]
[1749043145360,19.8083697,155.53,155.5,0.14216157]
[1749043148206,19.8083697,155.53,155.49,20.09269284]
[1749043148379,19.8083697,155.52,155.49,0.14216157]
[1749043148781,19.8083697,155.51,155.47,0.28432314]
[1749043149100,19.8083697,155.51,155.47,38.88450327]
[1749043149395,19.8083697,155.51,155.47,19.07613357]
[1749043149968,19.8083697,155.48,155.44,38.45801856]
[1749043150169,19.8083697,155.48,155.45,0.42648471]
[1749043151174,19.8083697,155.49,155.45,20.23485441]
[1749043152997,19.8083697,155.49,155.45,0.14216157]
[1749043153503,19.8083697,155.49,155.45,19.95053127]
[1749043156497,19.8083697,155.48,155.44,19.8083697]
[1749043156680,20.610311,155.48,155.44,19.8083697]
[1749043157008,19.8083697,155.46,155.42,19.8083697]
[1749043157210,0.8019413,155.48,155.42,0.14216157]
[1749043157211,19.8083697,155.45,155.42,0.14216157]
[1749043158614,1.5719,155.47,155.31,39.29]
[1749043158903,19.8083697,155.42,155.37,0.14216157]
[1749043159089,19.8083697,155.42,155.39,18.64964886]
[1749043159280,19.8083697,155.42,155.38,19.8083697]
[1749043159480,19.8083697,155.42,155.37,18.79181043]
[1749043159706,19.8083697,155.42,155.38,19.07613357]
[1749043159895,19.8083697,155.42,155.38,18.64964886]
[1749043160081,19.8083697,155.42,155.38,38.45801856]
[1749043160280,19.8083697,155.42,155.39,0.14216157]
[1749043160509,19.8083697,155.42,155.37,19.95053127]
[1749043160686,19.8083697,155.4,155.36,0.14216157]
[1749043160882,19.8083697,155.4,155.37,18.64964886]
[1749043161101,19.8083697,155.4,155.38,0.14216157]
[1749043161997,19.8083697,155.41,155.38,0.14216157]
[1749043162815,19.8083697,155.42,155.38,0.14216157]
[1749043164782,19.8083697,155.43,155.39,19.8083697]
[1749043164983,0.8019413,155.45,155.41,19.8083697]
[1749043165192,22.182211,155.47,155.42,19.8083697]
[1749043165387,2.3738413,155.47,155.43,19.8083697]
[1749043165589,2.3738413,155.47,155.42,19.8083697]
[1749043165590,20.610311,155.47,155.42,19.8083697]
[1749043165997,19.8083697,155.46,155.42,19.8083697]
[1749043166399,19.8083697,155.47,155.42,19.8083697]
[1749043166611,19.8083697,155.47,155.43,19.8083697]
[1749043167808,19.8083697,155.48,155.43,19.8083697]
[1749043168110,20.610311,155.49,155.44,19.8083697]
[1749043168309,20.610311,155.49,155.45,19.8083697]
[1749043168623,20.610311,155.49,155.44,19.8083697]
[1749043169336,20.610311,155.49,155.45,19.8083697]
[1749043169497,0.8019413,155.49,155.45,19.8083697]
[1749043169817,19.8083697,155.49,155.44,19.8083697]
[1749043170017,20.610311,155.48,155.44,19.8083697]
[1749043170199,19.8083697,155.48,155.44,19.8083697]
[1749043170615,19.8083697,155.49,155.44,19.8083697]
[1749043170914,0.8019413,155.5,155.43,0.28432314]
[1749043170915,0.8019413,155.5,155.45,19.8083697]
[1749043171119,19.8083697,155.49,155.45,19.8083697]
[1749043172302,0.8019413,155.5,155.45,19.8083697]
[1749043172498,19.8083697,155.49,155.45,19.8083697]
[1749043176426,20.610311,155.5,155.45,19.8083697]
[1749043176810,19.8083697,155.49,155.45,19.8083697]
[1749043177727,0.8019413,155.48,155.44,19.8083697]
[1749043177939,20.610311,155.48,155.44,19.8083697]
[1749043178598,0.8019413,155.48,155.44,19.8083697]
[1749043178804,19.8083697,155.49,155.45,19.8083697]
[1749043179015,0.8019413,155.48,155.45,19.8083697]
[1749043179405,19.8083697,155.49,155.45,19.8083697]
[1749043179800,0.8019413,155.48,155.45,19.8083697]
[1749043180007,19.8083697,155.49,155.45,19.8083697]
[1749043181208,0.8019413,155.48,155.45,19.8083697]
[1749043181610,19.8083697,155.49,155.45,19.8083697]
[1749043182446,19.8083697,155.52,155.48,19.8083697]
[1749043182606,19.8083697,155.51,155.47,19.8083697]
[1749043182930,20.610311,155.5,155.46,19.8083697]
[1749043183110,20.610311,155.5,155.46,0.14216157]
[1749043183438,19.8083697,155.49,155.45,45.8083697]
[1749043184429,19.8083697,155.5,155.45,45.8083697]
[1749043184820,19.8083697,155.5,155.46,19.8083697]
[1749043185216,19.8083697,155.51,155.46,19.8083697]
[1749043186028,0.8019413,155.5,155.46,19.8083697]
[1749043186237,20.610311,155.51,155.46,19.8083697]
[1749043188036,19.8083697,155.5,155.46,19.8083697]
[1749043190334,20.610311,155.51,155.46,19.8083697]
[1749043191323,19.8083697,155.5,155.46,19.8083697]
[1749043193058,20.610311,155.52,155.48,19.8083697]
[1749043193721,20.610311,155.52,155.49,0.14216157]
[1749043193722,0.8019413,155.52,155.49,0.14216157]
[1749043194041,20.610311,155.54,155.49,19.8083697]
[1749043194345,19.8083697,155.53,155.49,19.8083697]
[1749043194747,0.8019413,155.54,155.49,19.8083697]
[1749043194917,19.8083697,155.53,155.49,19.8083697]
[1749043195739,19.8083697,155.52,155.49,18.79181043]
[1749043197475,2.4642413,155.55,155.51,19.8083697]
[1749043197656,19.8083697,155.55,155.51,19.8083697]
[1749043197946,0.8019413,155.56,155.52,19.8083697]
[1749043197947,19.8083697,155.56,155.52,19.8083697]
[1749043199138,19.8083697,155.55,155.52,18.79181043]
[1749043200522,20.610311,155.54,155.5,19.8083697]
[1749043201035,19.8083697,155.54,155.5,19.8083697]
[1749043201241,19.8083697,155.55,155.51,19.8083697]
[1749043201939,19.8083697,155.56,155.51,19.8083697]
[1749043202120,0.8019413,155.55,155.51,19.8083697]
[1749043202320,0.8019413,155.57,155.51,19.8083697]
[1749043202520,19.8083697,155.55,155.51,19.8083697]
[1749043202747,19.8083697,155.56,155.51,19.8083697]
[1749043203555,20.610311,155.57,155.52,19.95053127]
[1749043204643,19.8083697,155.56,155.52,19.95053127]
[1749043206456,0.8019413,155.59,155.55,19.8083697]
[1749043206627,20.610311,155.62,155.58,19.8083697]
[1749043206950,19.8083697,155.62,155.58,19.8083697]
[1749043208360,22.260811,155.63,155.59,19.8083697]